Cogmind - Beta 16.1 @@@ ROGUE MODE // 2026.02.18 @ 12:01:38 Player: Ceorik Result: Destroyed by G-47 Trooper with Particle Gun Performance ------------- Evolutions (0) 0 Regions Visited (1) 200 Robots Destroyed (1) 5 Value Destroyed (34) 34 Prototype IDs (0) 0 Alien Tech Used (0) 0 Bonus (0) 0 TOTAL SCORE: 239 Bonus ------- None Cogmind --------- Core Integrity 0/250 Matter 234/300 Energy 100/100 System Corruption 0% Temperature Cool (9) Movement Core (200) Ox3 Location -10/Materials Parts ------- > --- POWER (1) -------- (None) > --- PROPULSION (2) --- (None) > --- UTILITY (2) ------ Heat Sink Small Storage Unit > --- WEAPON (2) ------- Medium Laser Beam Cannon > --- INVENTORY (8) ---- Small Matter Pod (0) Signal Interpreter ECM Suite EM Pulse Gun Light Assault Rifle Light Cannon Peak State ------------ > --- POWER ------------ Light Ion Engine > --- PROPULSION ------- Light Treads Light Treads > --- UTILITY ---------- Small Storage Unit Small Matter Pod > --- WEAPON ----------- Medium Laser Light Assault Rifle > --- INVENTORY -------- Signal Interpreter ECM Suite EM Pulse Gun Beam Cannon Light Cannon [Rating: 7] Favorites ----------- Power Light Ion Engine Engine Light Ion Engine Propulsion Light Treads Treads Light Treads Utility Small Storage Unit Device Heat Sink Storage Small Storage Unit Weapon Medium Laser Energy Gun Medium Laser Energy Cannon Beam Cannon Ballistic Gun Light Assault Rifle Build | -11 -10 ------- Run | Yrd Mat Slots Evolved . | . . Power . | . . Propulsion . | . . Utility . | . . Weapon . | . . Parts Attached 10 | 7 3 Power 1 | 1 . Engine 1 | 1 . Core . | . . Reactor . | . . Propulsion 2 | 2 . Treads 2 | 2 . Leg . | . . Wheel . | . . Hover . | . . Flight . | . . Utility 3 | 1 2 Device 1 | . 1 Storage 2 | 1 1 Processor . | . . Hackware . | . . Protection . | . . Artifact . | . . Weapon 4 | 3 1 Energy Gun 2 | 2 . Energy Cannon 1 | . 1 Ballistic Gun 1 | 1 . Ballistic Cannon . | . . Launcher . | . . Special Weapon . | . . Impact Weapon . | . . Slashing Weapon . | . . Piercing Weapon . | . . Special Melee Weapon . | . . Unidentified Prototypes . | . . Parts Lost 3 | . 3 Power 1 | . 1 Propulsion 2 | . 2 Utility . | . . Weapon . | . . Highest Loss Streak 2 | . 2 To Critical Strikes . | . . Average Backups 3 | . 4 Power . | . . Propulsion . | . . Utility 1 | . 1 Weapon 2 | . 2 Tool/Special . | . . Unused Backups 3 | . 3 Power . | . . Propulsion . | . . Utility 2 | . 2 Weapon 1 | . 1 Tool/Special . | . . Average Slot Usage (%) 90 | . 90 Engine 11 | . 11 Treads 25 | . 25 Device 1 | . 1 Storage 23 | . 23 Energy Gun 14 | . 14 Energy Cannon 2 | . 2 Ballistic Gun 11 | . 11 Peak Build Rating 7 | 6 7 Average Rating 6 | 4 6 On Entrance 3 | . 6 Avg Prop Armor Cover (%) . | . . Naked Turns . | . . Heaviest Build 12 | 11 12 Greatest Support 40 | 40 40 Greatest Overweight (x) 3 | 2 3 Average Overweight (x) . | . . Largest Inventory Capacity 8 | 8 8 Average Capacity 7 | 7 8 Most Carried 7 | 3 7 Average Carried 3 | . 4 Final Capacity 8 | 8 8 Final Carried 6 | 1 6 Class Distribution -------------------- 100% | Mutant Dominant Class ---------------- Mutant | -10/Materials Resources | -11 -10 ----------- Run | Yrd Mat Matter Collected 226 | 151 75 Remotely . | . . Salvage Created 36 | . 36 Parts 3 | . 3 Haulers Intercepted . | . . Recyclers Shooed 1 | . 1 Parts Field Recycled . | . . Retrieved Matter . | . . Parts Self-Destructed . | . . Prevented . | . . Parts Restored . | . . Kills | -11 -10 ------- Run | Yrd Mat Combat Hostiles Destroyed 1 | . 1 Guns 1 | . 1 Classes Destroyed 1 | . 1 Grunt 1 | . 1 Best Kill Streak 1 | . 1 Combat Bots Only 1 | . 1 Max Kills in Single Turn 1 | . 1 Gunslinging . | . . Exploded . | . . Melee . | . . Uniques/NPCs Destroyed . | . . Combat | -11 -10 -------- Run | Yrd Mat Hostile Shots Fired 86 | . 86 Missed 19 | . 19 Hits 67 | . 67 Projectile 67 | . 67 Damage Taken 756 | . 756 Core 263 | . 263 Absorbed by Shields . | . . Core Remaining (%) 100 | 100 . Volleys Fired 11 | . 11 Largest 2 | . 2 Hottest 110 | . 110 Shots Fired 22 | . 22 Gun 18 | . 18 Cannon 4 | . 4 Launcher . | . . Special . | . . Kinetic 7 | . 7 Thermal 15 | . 15 Explosive . | . . Electromagnetic . | . . Robot Hit Streak 4 | . 4 Robot Miss Streak 2 | . 2 Penetration Max . | . . Secondary Targets . | . . Shots Hit Robots 11 | . 11 Core Hits 4 | . 4 Critical Kills . | . . Critical Parts Destroyed . | . . Critical Strikes 1 | . 1 Burn 1 | . 1 Melee Attacks . | . . Impact . | . . Slashing . | . . Piercing . | . . Sneak Attacks . | . . Combat Hostiles . | . . Follow-up Attacks . | . . Damage Inflicted 166 | . 166 Guns 114 | . 114 Cannons 52 | . 52 Explosions . | . . Melee . | . . Ramming . | . . Kinetic 39 | . 39 Thermal 127 | . 127 Explosive . | . . Electromagnetic . | . . Impact . | . . Slashing . | . . Piercing . | . . Highest Corruption . | . . Average Corruption . | . . Corruption Purged . | . . Corruption Blocked . | . . Overload Shots . | . . Overflow Damage . | . . Projectiles . | . . Explosions . | . . Melee . | . . Knockbacks . | . . Impact . | . . Kinetic . | . . Secondary . | . . Self-Inflicted Damage . | . . Shots . | . . Rammed . | . . Targets Rammed . | . . Kicked . | . . Crushed . | . . Highest Temperature 262 | . 262 Average Temperature 127 | . 127 Received Heat Transfer 429 | . 429 Effects 1 | . 1 Energy Bleed 1 | . 1 Siege Activations . | . . Martial Activations . | . . Shielding Activations . | . . Robots Disrupted . | . . Combat Hostiles . | . . Robots Corrupted . | . . Combat Hostiles . | . . Parts Fried . | . . Impact Corruptions . | . . Robots Melted . | . . Combat Hostiles . | . . Parts Melted . | . . Heat Transferred 407 | . 407 Parts Sabotaged . | . . Parts Stolen . | . . Parts Stripped . | . . Power Chain Reactions . | . . Alert | -11 -10 ------- Run | Yrd Mat Maximum Alert Level . | . . Low Security (%) 100 | 100 100 Level 1 . | . . Level 2 . | . . Level 3 . | . . Level 4 . | . . Level 5 . | . . High Security . | . . Max Security . | . . Peak Influence 30 | . 30 Initial . | . . Average 3 | . 5 Influence Increases 75 | . 75 Destroy 0b10 Robot/C 20 | . 20 Destroy Leader 10 | . 10 Lose Combat Pursuer 45 | . 45 Influence Decreases 75 | . 75 Time Decay 60 | . 60 Lost Part 15 | . 15 Squads Dispatched 1 | . 1 Investigation . | . . Extermination . | . . Reinforcement 1 | . 1 Assault . | . . Garrison . | . . Intercept . | . . Searches Triggered . | . . Construction Impeded . | . . Haulers Reinforced . | . . Active Scanning Responses . | . . Cargo Convoy Interrupts . | . . Stealth | -11 -10 --------- Run | Yrd Mat Distress Signals 2 | . 2 Communications Jammed . | . . Distress Signals . | . . Times Spotted 13 | . 13 Peak Tracking Total 7 | . 7 Tactical Retreats 2 | . 2 Traps | -11 -10 ------- Run | Yrd Mat Traps Triggered . | . . Indirectly . | . . Trap Hack Attempts . | . . Triggered . | . . Disarmed . | . . Reprogrammed . | . . Reused . | . . Traps Extracted . | . . Installed . | . . Triggered . | . . Machines | -11 -10 ---------- Run | Yrd Mat Machines Disabled . | . . Max in Single Turn . | . . Machines Repaired . | . . Machines Dismantled . | . . Machines Sabotaged . | . . Overloaded Fab Kills . | . . Hacking | -11 -10 --------- Run | Yrd Mat Machines Accessed 1 | . 1 Terminals 1 | . 1 Fabricators . | . . Repair Stations . | . . Recycling Units . | . . Scanalyzers . | . . Garrison Access . | . . Total Hacks 2 | . 2 Successful . | . . Failed 2 | . 2 Catastrophic . | . . Database Lockouts . | . . Manual 2 | . 2 Terminals 2 | . 2 Fabricators . | . . Repair Stations . | . . Recycling Units . | . . Scanalyzers . | . . Garrison Access . | . . Terminal Hacks . | . . Fabricator Hacks . | . . Repair Station Hacks . | . . Recycling Unit Hacks . | . . Scanalyzer . | . . Garrison Access Hacks . | . . Unauthorized Hacks . | . . Terminals . | . . Fabricators . | . . Repair Stations . | . . Recycling Units . | . . Scanalyzers . | . . Garrison Access . | . . Data Cores Recovered . | . . Used . | . . Hacking Detections 1 | . 1 Full Trace Events . | . . Feedback Events . | . . Feedback Blocked . | . . Robot Schematics Acquired . | . . Robots Built . | . . Authchips . | . . Time . | . . Total Robot Build Rating . | . . Part Schematics Acquired . | . . Parts Built . | . . Authchips . | . . Time . | . . Total Part Build Rating . | . . Part Studies Acquired . | . . Parts Repaired . | . . Time . | . . Parts Recycled . | . . Recycled Matter . | . . Retrieved Matter . | . . Retrieved Components . | . . Parts Scanalyzed . | . . Part Schematics Acquired . | . . Parts Damaged . | . . Bothacking | -11 -10 ------------ Run | Yrd Mat Used RIF Installer . | . . Robots Hacked . | . . Non-combat . | . . Combat . | . . Robot Hacks Applied . | . . Relay Couplers Released . | . . Fabnet Peak Effective % . | . . Robots Rewired . | . . Allies Hacked . | . . Hacks Repelled . | . . Allies | -11 -10 -------- Run | Yrd Mat Total Allies . | . . Largest Group . | . . Highest-Rated Group . | . . Highest-Rated Ally . | . . Total Orders . | . . Ally Attacks . | . . Total Damage . | . . Kills . | . . Allies Corrupted . | . . Allies Melted . | . . Intel | -11 -10 ------- Run | Yrd Mat Active Infowar (turns) . | . . Robot Analysis Total . | . . Derelict Logs Recovered . | . . Drone Launches . | . . Drone Recoveries . | . . Exploration | -11 -10 ------------- Run | Yrd Mat Turns Passed 439 | 109 330 Spaces Moved 189 | 59 130 Core 15 | 11 4 Treads 174 | 48 126 Legs . | . . Wheels . | . . Hover . | . . Flight . | . . Fastest Speed 50 | 50 160 Average Speed 156 | 146 161 Slowest Speed 200 | 160 200 Overloaded Moves . | . . Propulsion Burnouts . | . . Robots Hopped . | . . Potential Cave-ins . | . . Cave-ins Triggered . | . . Exploration Rate (%) 14 | 5 24 Regions Visited 1 Branch Regions . Pre-discovered Areas . | . . Known Exits Taken . | . . Unknown Exits Taken 1 | 1 . Scrap Searched . | . . Spaces Dug . | . . Terrain Destroyed . | . . Melee . | . . Projectile . | . . AOE . | . . Terrain Rammed . | . . Walls Destroyed . | . . Machines Disabled . | . . Actions | -11 -10 --------- Run | Yrd Mat Total 312 | 82 230 Wait 88 | 9 79 Move 188 | 58 130 Hop . | . . Pick Up 13 | 7 6 Fast Attach . | . . Attach 9 | 7 2 Detach 2 | 1 1 Swap 1 | . 1 Drop . | . . Fire 11 | . 11 Melee . | . . Ram . | . . Kick . | . . Crush . | . . Escape Stasis . | . . Rewire . | . . Trap . | . . Miscellaneous . | . . Route ------- -11/Scrapyard -10/Materials History --------- Turn | Location | Event 19 | -11/Scrapyard | Discovered new exit (range 15) 110 | -11/Scrapyard | Entered Materials 306 | -10/Materials | Build established: Mutant 380 | -10/Materials | Core integrity fell below 50% 407 | -10/Materials | Core integrity fell below 20% 440 | -10/Materials | Destroyed by G-47 Trooper with Particle Gun Last Messages --------------- 00387_ G-34 Mercenary destroyed. 00390_ K-01 Serf collects debris. 00393_ Lgt. Treads destroyed. 00393_ K-01 Serf collects debris. 00396_ G-34 Mercenary destroyed. 00396_ K-01 Serf collects debris. 00397_ Acquired 34 matter. 00399_ Acquired 41 matter. 00401_ K-01 Serf collects debris. 00407_ Acquired Heat Sink. 00408_ K-01 Serf collects debris. 00419_ R-06 Scavenger inserts Med. Matter Pod into recycling unit. 00422_ R-06 Scavenger inserts Heat Sink into recycling unit. 00425_ R-06 Scavenger inserts Ion Engine into recycling unit. 00431_ Lgt. Treads destroyed. 00432_ O-16 Technician: "IFF HANDSHAKE FAILED. SECURING TERMINAL." Map ----- +----------------------------------------------------+ | ???????????????????????????????????????????????? | | ???????????????????????????????????????????????? | | ???????????????????????????????????????????????? | | ???????????????????????????????????????????????? | | ???????????????????????????????????????????????? | | ???????????????????????????????????????????????? | | ???????????????????????????????????????????????? | | ???????????????????????????????????????????????? | | ???????????????????????????????????????????????? | | ???????????????????????????????????????????????? | | ???????????? ????????????????????????????????? | | ???????????? ????????????????????????????????? | | ???????????? ????????????????????????????????? | | ???????????# #???????????????????????????????? | | ???????????# #???????????????????????????????? | | ???????????# #???????????????????????????????? | | ???????????# #???????????????????????????????? | | ???????????# #???????????????????????????????? | | ???????????# #????#######???######???????????? | | ??????????? #????[ #? ???????????? | | ???????????# #???# #? ??????????? | | ???????????# #???# """ "#? T ^ [??????????? | | ???????????# #???# """ T# ?????????? | | ???????????# #?????""" "# ????????? | | ???????????# #??????? # ???????? | | ???????????# #??????###@# ???????? | | ???????????# % #??????# !!! ???????? | | ???????????# = #??????# !!! ???????? | | ???????????# #??????# """ !!! ???????? | | ???????????# #??????## """ ?????????????? | | ???????????# [ #???????# g """ ? ? ?????????? | | ???????????# [#???????#g g """ ???????? | | ???????????# = ###?????#r o ???????? | | ???????????# ! ####### ???????? | | ???????????# w #####"Y"#????????? | | ???????????# T !#?????????????? | | ???????????# !#????????????? | | ???????????# ############ !#????????????? | | ???????????## ##??????????? !#????????????? | | ???????? ???# #???????????? !#????????????? | | ???????? ???# #????????????? !##????????????? | | ???????# ???# #??????????????###?????????????? | | ???????# #### #??????????????????????????????? | | ???????# #??????????????????????????????? | | ???????# #??????????????????????????????? | | ???????# #??????????????????????????????? | | ???????# ##+######???????????????????????????? | | ???????# # #???????????????????????????? | | ???????# # """#???????????????????????????? | | ######## # """#???????????????????????????? | +----------------------------------------------------+ Best States ------------- Heat Dissipation 35 Energy Generation 10 Energy Capacity 125 Matter Stores 239 Matter Capacity 350 Sight Range 16 Terrain Scan Density 10 Evasion (%) 40 Recoil Reduction 2 Item Schematics ----------------- None Robot Schematics ------------------ None Fabricated ------------ Nothing Repaired ---------- Nothing Studied --------- None Alien Tech Used ----------------- None Achievements -------------- None Challenges ------------ None Game ------ Seed LaserIntegratedCloak Manual? 0 Play Time 00:06:02 Cumulative 6.2 hours Start 2026.02.18 @ 11:56:09 End 2026.02.18 @ 12:01:38 Sessions 1 Manual Loads 0 Difficulty Rogue Special Mode None Game No. 6 Rogue 6 Adventurer 0 Explorer 0 Win Type - Total 0 Types 0/0/0/0/0/0/0/0/0/0 Lore% 7 Gallery% 14 Achievement% 12 Wizard Run 0 Options --------- Layout 1 ASCII 0 Keyboard 0 Movement Mouse Keybinds 0 Fullscreen 1 Font 24/Swanston Map View 50x35 Zoom Use 0% Tactical HUD 1 Map Filters NONE Filters NONE Steam 1 RUN: cbff0006-b065-4886-b21f-54853d666b4f